fUST/lending_fUST_20240919
["ID","MTS","AMOUNT","RATE_DAILY","PERIOD"]
[338576427,1726743042189,-500.0,0.00016438,2]
[338576428,1726743042199,-500.0,0.00016438,2]
[338576429,1726743042210,-629.87,0.00016438,2]
[338576430,1726743042221,-500.0,0.00016438,2]
[338576431,1726743042231,-1227.52,0.00016438,2]
[338576432,1726743042242,-500.0,0.00016438,2]
[338576433,1726743042252,-1130.66,0.00016438,2]
[338576434,1726743042262,-2234.7,0.00016438,2]
[338576435,1726743042272,-500.0,0.00016438,2]
[338576436,1726743042281,-554.53,0.00016438,2]
[338576437,1726743042291,-500.0,0.00016438,2]
[338576438,1726743042300,-500.0,0.00016438,2]
[338576439,1726743042311,-500.0,0.00016438,2]
[338576440,1726743042320,-500.0,0.00016438,2]
[338576441,1726743042330,-180.00434868,0.00016438,2]
[338576442,1726743042340,-500.0,0.00016438,2]
[338576443,1726743042349,-500.0,0.00016438,2]
[338576444,1726743042359,-984.24,0.00016438,2]
[338576445,1726743042369,-500.0,0.00016438,2]
[338576446,1726743042378,-500.0,0.00016438,2]
[338576447,1726743042388,-1139.48,0.00016438,2]
[338576448,1726743042398,-500.0,0.00016438,2]
[338576449,1726743042408,-500.0,0.00016438,2]
[338576450,1726743042418,-1156.32,0.00016438,2]
[338576451,1726743042428,-500.0,0.00016438,2]
[338576452,1726743042439,-500.0,0.00016438,2]
[338576453,1726743042450,-500.0,0.00016438,2]
[338576454,1726743042461,-500.0,0.00016438,2]
[338576455,1726743042471,-568.37636911,0.00016438,2]
[338576456,1726743042480,-633.51561594,0.00016438,2]
[338576457,1726743042490,-500.0,0.00016438,2]
[338576458,1726743042500,-500.0,0.00016438,2]
[338576459,1726743042509,-522.09,0.00016438,2]
[338576460,1726743042519,-508.52,0.00016438,2]
[338576461,1726743042528,-500.0,0.00016438,2]
[338576462,1726743042537,-1724.47,0.00016438,2]
[338576463,1726743042547,-500.0,0.00016438,2]
[338576464,1726743042556,-500.0,0.00016438,2]
[338576466,1726743042566,-362.13980169,0.00016438,2]
[338576467,1726743042576,-500.0,0.00016438,2]
[338576468,1726743042586,-527.04,0.00016438,2]
[338576469,1726743042596,-3211.76,0.00016438,2]
[338576470,1726743042605,-2748.12,0.00016438,2]
[338576471,1726743042615,-552.93,0.00016438,2]
[338576472,1726743042625,-500.0,0.00016438,2]
[338576473,1726743042634,-888.71,0.00016438,2]
[338576475,1726743042644,-500.0,0.00016438,2]
[338576476,1726743042654,-499.07152592,0.00016438,2]
[338576477,1726743042663,-629.17,0.00016438,2]
[338576478,1726743042674,-500.0,0.00016438,2]
[338576479,1726743042685,-500.0,0.00016438,2]
[338576481,1726743042696,-500.0,0.00016438,2]
[338576483,1726743042706,-821.99,0.00016438,2]
[338576485,1726743042715,-500.0,0.00016438,2]
[338576487,1726743042726,-500.0,0.00016438,2]
[338576489,1726743042736,-764.12,0.00016438,2]
[338576491,1726743042745,-500.0,0.00016438,2]
[338576493,1726743042755,-977.11,0.00016438,2]
[338576495,1726743042766,-500.0,0.00016438,2]
[338576496,1726743042777,-500.0,0.00016438,2]
[338576498,1726743042787,-1739.2,0.00016438,2]
[338576500,1726743042796,-500.0,0.00016438,2]
[338576502,1726743042807,-500.0,0.00016438,2]
[338576503,1726743042817,-500.0,0.00016438,2]
[338576504,1726743042826,-232.55147581,0.00016438,2]
[338576505,1726743042836,-500.0,0.00016438,2]
[338576506,1726743042846,-1468.44,0.00016438,2]
[338576507,1726743042855,-500.0,0.00016438,2]
[338576508,1726743042865,-500.0,0.00016438,2]
[338576509,1726743042875,-511.49,0.00016438,2]
[338576510,1726743042884,-678.8,0.00016438,2]
[338576511,1726743042893,-2268.18,0.00016438,2]
[338576512,1726743042903,-500.0,0.00016438,2]
[338576513,1726743042912,-500.0,0.00016438,2]
[338576514,1726743042922,-1437.56,0.00016438,2]
[338576515,1726743042931,-725.8,0.00016438,2]
[338576516,1726743042941,-500.0,0.00016438,2]
[338576517,1726743042951,-1262.91,0.00016438,2]
[338576518,1726743042960,-614.01,0.00016438,2]
[338576519,1726743042970,-500.0,0.00016438,2]
[338576520,1726743042980,-500.0,0.00016438,2]
[338576521,1726743042989,-500.0,0.00016438,2]
[338576522,1726743042999,-500.0,0.00016438,2]
[338576523,1726743043009,-780.22,0.00016438,2]
[338576524,1726743043019,-500.0,0.00016438,2]
[338576525,1726743043028,-857.13,0.00016438,2]
[338576526,1726743043038,-500.0,0.00016438,2]
[338576527,1726743043048,-500.0,0.00016438,2]
[338576528,1726743043058,-500.71773299,0.00016438,2]
[338576529,1726743043069,-500.0,0.00016438,2]
[338576530,1726743043079,-923.99,0.00016438,2]
[338576531,1726743043090,-500.0,0.00016438,2]
[338576532,1726743043100,-841.36,0.00016438,2]
[338576533,1726743043110,-500.0,0.00016438,2]
[338576534,1726743043120,-500.0,0.00016438,2]
[338576535,1726743043130,-1991.27,0.00016438,2]
[338576536,1726743043139,-500.0,0.00016438,2]
[338576537,1726743043149,-500.0,0.00016438,2]
[338576538,1726743043159,-500.0,0.00016438,2]
[338576539,1726743043168,-1388.68,0.00016438,2]
[338576540,1726743043178,-496.63414061,0.00016438,2]
[338576541,1726743043187,-500.0,0.00016438,2]
[338576542,1726743043197,-500.0,0.00016438,2]
[338576543,1726743043207,-1174.98,0.00016438,2]
[338576544,1726743043216,-500.0,0.00016438,2]
[338576545,1726743043226,-500.0,0.00016438,2]
[338576546,1726743043236,-500.0,0.00016438,2]
[338576547,1726743043245,-2207.73,0.00016438,2]
[338576548,1726743043255,-500.0,0.00016438,2]
[338576549,1726743043264,-500.0,0.00016438,2]
[338576550,1726743043274,-816.5,0.00016438,2]
[338576551,1726743043283,-552.08,0.00016438,2]
[338576552,1726743043293,-1306.3,0.00016438,2]
[338576553,1726743043302,-500.0,0.00016438,2]
[338576554,1726743043313,-1172.74,0.00016438,2]
[338576555,1726743043323,-577.08,0.00016438,2]
[338576556,1726743043333,-500.0,0.00016438,2]
[338576557,1726743043342,-500.0,0.00016438,2]
[338576558,1726743043352,-866.99,0.00016438,2]
[338576559,1726743043361,-500.0,0.00016438,2]
[338576560,1726743043371,-151.96863355,0.00016438,2]
[338576561,1726743043381,-291.97,0.00016438,2]
[338576562,1726743043390,-500.0,0.00016438,2]
[338576563,1726743043400,-500.0,0.00016438,2]
[338576564,1726743043409,-620.77,0.00016438,2]
[338576565,1726743043418,-584.22,0.00016438,2]
[338576566,1726743043428,-500.0,0.00016438,2]
[338576567,1726743043437,-1496.08,0.00016438,2]
[338576568,1726743043447,-514.50119356,0.00016438,2]
[338576569,1726743043456,-530.95,0.00016438,2]
[338576570,1726743043466,-500.0,0.00016438,2]
[338576571,1726743043476,-500.0,0.00016438,2]
[338576572,1726743043486,-500.0,0.00016438,2]
[338576573,1726743043496,-500.0,0.00016438,2]
[338576574,1726743043505,-500.0,0.00016438,2]
[338576575,1726743043514,-748.82,0.00016438,2]
[338576576,1726743043523,-500.0,0.00016438,2]
[338576577,1726743043533,-500.0,0.00016438,2]
[338576578,1726743043543,-500.0,0.00016438,2]
[338576579,1726743043553,-500.0,0.00016438,2]
[338576580,1726743043564,-500.0,0.00016438,2]
[338576581,1726743043573,-1362.48,0.00016438,2]
[338576582,1726743043583,-500.0,0.00016438,2]
[338576583,1726743043593,-500.0,0.00016438,2]
[338576584,1726743043602,-1182.3,0.00016438,2]
[338576585,1726743043612,-500.0,0.00016438,2]
[338576586,1726743043622,-523.24158057,0.00016438,2]
[338576587,1726743043631,-500.0,0.00016438,2]
[338576588,1726743043641,-500.0,0.00016438,2]
[338576589,1726743043650,-500.0,0.00016438,2]
[338576590,1726743043660,-868.7,0.00016438,2]
[338576591,1726743043670,-500.0,0.00016438,2]
[338576592,1726743043680,-500.0,0.00016438,2]
[338576594,1726743043694,-500.0,0.00016438,2]
[338576596,1726743043703,-468.32,0.00016438,2]
[338576598,1726743043713,-770.84,0.00016438,2]
[338576599,1726743043724,-500.0,0.00016438,2]
[338576601,1726743043734,-500.0,0.00016438,2]
[338576603,1726743043744,-500.0,0.00016438,2]
[338576605,1726743043754,-505.76472352,0.00016438,2]
[338576607,1726743043765,-1305.28,0.00016438,2]
[338576609,1726743043774,-500.0,0.00016438,2]
[338576611,1726743043785,-500.0,0.00016438,2]
[338576612,1726743043794,-594.85,0.00016438,2]
[338576614,1726743043804,-500.0,0.00016438,2]
[338576616,1726743043815,-746.13,0.00016438,2]
[338576618,1726743043825,-501.0997951,0.00016438,2]
[338576620,1726743043834,-216.78,0.00016438,2]
[338576621,1726743043844,-758.57,0.00016438,2]
[338576623,1726743043854,-500.0,0.00016438,2]
[338576625,1726743043864,-534.15673478,0.00016438,2]
[338576627,1726743043874,-500.0,0.00016438,2]
[338576629,1726743043883,-690.56,0.00016438,2]
[338576631,1726743043893,-500.0,0.00016438,2]
[338576633,1726743043903,-1742.96,0.00016438,2]
[338576635,1726743043913,-500.0,0.00016438,2]
[338576636,1726743043923,-878.09,0.00016438,2]
[338576637,1726743043933,-1003.53,0.00016438,2]
[338576638,1726743043942,-654.1,0.00016438,2]
[338576639,1726743043952,-563.77,0.00016438,2]
[338576640,1726743043962,-500.0,0.00016438,2]
[338576641,1726743043972,-778.24,0.00016438,2]
[338576642,1726743043982,-500.0,0.00016438,2]
[338576643,1726743043991,-500.0,0.00016438,2]
[338576644,1726743044001,-1674.93,0.00016438,2]
[338576645,1726743044010,-896.41,0.00016438,2]
[338576646,1726743044020,-500.0,0.00016438,2]
[338576647,1726743044030,-500.0,0.00016438,2]
[338576648,1726743044039,-500.0,0.00016438,2]
[338576649,1726743044049,-847.08,0.00016438,2]
[338576650,1726743044059,-500.0,0.00016438,2]
[338576651,1726743044069,-704.53,0.00016438,2]
[338576652,1726743044079,-500.0,0.00016438,2]
[338576653,1726743044090,-500.0,0.00016438,2]
[338576654,1726743044099,-500.0,0.00016438,2]
[338576655,1726743044109,-500.0,0.00016438,2]
[338576656,1726743044119,-500.0,0.00016438,2]
[338576657,1726743044128,-500.0,0.00016438,2]
[338576658,1726743044138,-861.45,0.00016438,2]
[338576659,1726743044147,-500.0,0.00016438,2]
[338576660,1726743044157,-500.0,0.00016438,2]
[338576661,1726743044167,-529.26753828,0.00016438,2]
[338576662,1726743044177,-804.24,0.00016438,2]
[338576663,1726743044187,-500.0,0.00016438,2]
[338576664,1726743044197,-500.0,0.00016438,2]
[338576665,1726743044206,-500.0,0.00016438,2]
[338576666,1726743044216,-500.0,0.00016438,2]
[338576667,1726743044226,-1089.59,0.00016438,2]
[338576668,1726743044236,-500.0,0.00016438,2]
[338576669,1726743044245,-500.0,0.00016438,2]
[338576670,1726743044255,-500.0,0.00016438,2]
[338576671,1726743044265,-500.0,0.00016438,2]
[338576672,1726743044275,-500.0,0.00016438,2]
[338576673,1726743044284,-500.79052843,0.00016438,2]
[338576674,1726743044294,-500.0,0.00016438,2]
[338576675,1726743044303,-500.0,0.00016438,2]
[338576676,1726743044314,-500.0,0.00016438,2]
[338576677,1726743044324,-500.0,0.00016438,2]
[338576678,1726743044333,-500.0,0.00016438,2]
[338576679,1726743044343,-500.0,0.00016438,2]
[338576680,1726743044648,-500.0,0.00016438,2]
[338576681,1726743044663,-500.0,0.00016438,2]
[338576682,1726743044673,-500.0,0.00016438,2]
[338576683,1726743044685,-500.0,0.00016438,2]
[338576684,1726743044695,-500.0,0.00016438,2]
[338576685,1726743044705,-500.0,0.00016438,2]
[338576686,1726743044715,-500.0,0.00016438,2]
[338576687,1726743044727,-500.0,0.00016438,2]
[338576688,1726743044739,-735.24,0.00016438,2]
[338576689,1726743044751,-500.0,0.00016438,2]
[338576690,1726743044763,-337.10488405,0.00016438,2]
[338576691,1726743044772,-500.0,0.00016438,2]
[338576692,1726743044782,-500.0,0.00016438,2]
[338576693,1726743044791,-740.02,0.00016438,2]
[338576694,1726743044800,-585.27,0.00016438,2]
[338576695,1726743044810,-3669.06,0.00016438,2]
[338576696,1726743044821,-500.0,0.00016438,2]
[338576697,1726743044831,-500.0,0.00016438,2]
[338576698,1726743044840,-500.0,0.00016438,2]
[338576699,1726743044850,-500.0,0.00016438,2]
[338576700,1726743044859,-500.0,0.00016438,2]
[338576701,1726743044869,-500.0,0.00016438,2]
[338576702,1726743044878,-500.0,0.00016438,2]
[338576703,1726743044887,-518.35,0.00016438,2]
[338576704,1726743044898,-500.0,0.00016438,2]
[338576705,1726743044907,-500.0,0.00016438,2]
[338576706,1726743044918,-500.0,0.00016438,2]
[338576707,1726743044929,-500.0,0.00016438,2]
[338576708,1726743044939,-500.0,0.00016438,2]
[338576709,1726743044950,-740.14,0.00016438,2]
[338576710,1726743044960,-500.0,0.00016438,2]
[338576711,1726743044970,-500.0,0.00016438,2]
[338576712,1726743044979,-843.03,0.00016438,2]
[338576713,1726743044989,-1486.43,0.00016438,2]
[338576714,1726743044998,-500.0,0.00016438,2]
[338576715,1726743045008,-500.0,0.00016438,2]
[338576716,1726743045018,-500.0,0.00016438,2]
[338576717,1726743045028,-589.81121707,0.00016438,2]
[338576718,1726743045037,-500.0,0.00016438,2]
[338576719,1726743045047,-536.78,0.00016438,2]
[338576720,1726743045056,-500.0,0.00016438,2]
[338576721,1726743045068,-500.0,0.00016438,2]
[338576722,1726743045077,-500.0,0.00016438,2]
[338576723,1726743045086,-500.0,0.00016438,2]
[338576724,1726743045095,-500.0,0.00016438,2]
[338576725,1726743045105,-500.0,0.00016438,2]
[338576726,1726743045115,-500.0,0.00016438,2]
[338576727,1726743045125,-500.0,0.00016438,2]
[338576728,1726743045134,-540.45,0.00016438,2]
[338576729,1726743045144,-850.71,0.00016438,2]
[338576730,1726743045154,-738.54,0.00016438,2]
[338576731,1726743045164,-500.0,0.00016438,2]
[338576732,1726743045174,-500.0,0.00016438,2]
[338576733,1726743045184,-500.0,0.00016438,2]
[338576734,1726743045194,-500.0,0.00016438,2]
[338576735,1726743045204,-500.0,0.00016438,2]
[338576736,1726743045214,-658.81,0.00016438,2]
[338576737,1726743045224,-500.0,0.00016438,2]
[338576738,1726743045233,-534.91,0.00016438,2]
[338576739,1726743045244,-500.0,0.00016438,2]
[338576740,1726743045253,-500.0,0.00016438,2]
[338576741,1726743045263,-500.0,0.00016438,2]
[338576742,1726743045273,-1518.81,0.00016438,2]
[338576743,1726743045283,-500.0,0.00016438,2]
[338576744,1726743045293,-500.0,0.00016438,2]
[338576745,1726743045303,-500.0,0.00016438,2]
[338576746,1726743045314,-1655.57,0.00016438,2]
[338576747,1726743045324,-500.0,0.00016438,2]
[338576748,1726743045335,-500.0,0.00016438,2]
[338576749,1726743045345,-500.67401048,0.00016438,2]
[338576750,1726743045354,-500.0,0.00016438,2]
[338576751,1726743045364,-500.0,0.00016438,2]
[338576752,1726743045374,-811.8,0.00016438,2]
[338576753,1726743045385,-500.0,0.00016438,2]
[338576754,1726743045394,-500.0,0.00016438,2]
[338576755,1726743045404,-500.0,0.00016438,2]
[338576756,1726743045414,-550.91,0.00016438,2]
[338576757,1726743045423,-500.0,0.00016438,2]
[338576758,1726743045433,-515.42,0.00016438,2]
[338576759,1726743045443,-500.0,0.00016438,2]
[338576760,1726743045453,-500.0,0.00016438,2]
[338576761,1726743045463,-500.0,0.00016438,2]
[338576762,1726743045473,-500.0,0.00016438,2]
[338576763,1726743045483,-500.0,0.00016438,2]
[338576764,1726743045493,-500.0,0.00016438,2]
[338576765,1726743045502,-500.0,0.00016438,2]
[338576766,1726743045512,-500.0,0.00016438,2]
[338576767,1726743045521,-500.0,0.00016438,2]
[338576768,1726743045531,-500.0,0.00016438,2]
[338576769,1726743045541,-500.0,0.00016438,2]
[338576770,1726743045550,-500.0,0.00016438,2]
[338576771,1726743045560,-1839.4,0.00016438,2]
[338576772,1726743045570,-500.0,0.00016438,2]
[338576773,1726743045580,-500.0,0.00016438,2]
[338576774,1726743045591,-500.0,0.00016438,2]
[338576775,1726743045600,-500.0,0.00016438,2]
[338576776,1726743045610,-500.0,0.00016438,2]
[338576777,1726743045620,-680.03,0.00016438,2]
[338576778,1726743045631,-500.0,0.00016438,2]
[338576779,1726743045641,-500.0,0.00016438,2]
[338576780,1726743045650,-878.28,0.00016438,2]
[338576781,1726743045659,-500.0,0.00016438,2]
[338576782,1726743045669,-500.0,0.00016438,2]
[338576783,1726743045682,-500.0,0.00016438,2]
[338576784,1726743045694,-525.23152208,0.00016438,2]
[338576785,1726743045703,-1323.74,0.00016438,2]
[338576786,1726743045713,-1158.68,0.00016438,2]
[338576787,1726743045723,-500.0,0.00016438,2]
[338576788,1726743045733,-500.0,0.00016438,2]
[338576789,1726743045743,-500.0,0.00016438,2]
[338576790,1726743045754,-527.07,0.00016438,2]
[338576791,1726743045763,-500.0,0.00016438,2]
[338576792,1726743045773,-500.0,0.00016438,2]
[338576793,1726743045783,-819.24,0.00016438,2]
[338576794,1726743045792,-500.0,0.00016438,2]
[338576796,1726743045802,-769.28,0.00016438,2]
[338576798,1726743045811,-505.95510883,0.00016438,2]
[338576800,1726743045825,-500.0,0.00016438,2]
[338576801,1726743045835,-964.8,0.00016438,2]
[338576804,1726743045845,-500.0,0.00016438,2]
[338576805,1726743045854,-500.0,0.00016438,2]
[338576806,1726743045863,-64648.37,0.00016438,2]
[338576807,1726743045873,-500.0,0.00016438,2]
[338576808,1726743045883,-814.36,0.00016438,2]
[338576809,1726743045892,-661.0,0.00016438,2]
[338576810,1726743045902,-454.33808332,0.00016438,2]
[338576811,1726743045911,-500.0,0.00016438,2]
[338576812,1726743045921,-500.0,0.00016438,2]
[338576813,1726743045931,-7637.18,0.00016438,2]
[338576815,1726743045941,-1384.62,0.00016438,2]
[338576816,1726743045950,-500.0,0.00016438,2]
[338576817,1726743045959,-500.0,0.00016438,2]
[338576818,1726743045968,-528.40252368,0.00016438,2]
[338576819,1726743045978,-500.0,0.00016438,2]
[338576820,1726743045988,-500.0,0.00016438,2]
[338576821,1726743045997,-500.0,0.00016438,2]
[338576822,1726743046006,-770.03,0.00016438,2]
[338576823,1726743046018,-500.0,0.00016438,2]
[338576824,1726743046027,-500.0,0.00016438,2]
[338576825,1726743046037,-500.0,0.00016438,2]
[338576826,1726743046046,-500.0,0.00016438,2]
[338576827,1726743046056,-500.0,0.00016438,2]
[338576828,1726743046067,-500.0,0.00016438,2]
[338576829,1726743046077,-500.0,0.00016438,2]
[338576830,1726743046086,-500.0,0.00016438,2]
[338576831,1726743046096,-500.0,0.00016438,2]
[338576832,1726743046105,-500.0,0.00016438,2]
[338576833,1726743046115,-984.85,0.00016438,2]
[338576834,1726743046125,-500.0,0.00016438,2]
[338576835,1726743046134,-500.0,0.00016438,2]
[338576836,1726743046144,-637.08,0.00016438,2]
[338576837,1726743046154,-2528.63,0.00016438,2]
[338576838,1726743046164,-751.39,0.00016438,2]
[338576839,1726743046173,-500.0,0.00016438,2]
[338576840,1726743046183,-500.0,0.00016473,2]
[338576841,1726743046193,-500.0,0.00016473,2]
[338576842,1726743046202,-500.0,0.00016473,2]
[338576843,1726743046211,-500.0,0.00016473,2]
[338576844,1726743046222,-204.68820788,0.00016473,2]
[338576845,1726743046231,-500.0,0.00016473,2]
[338576846,1726743046241,-500.20872257,0.00016473,2]
[338576847,1726743046250,-500.68393457,0.00016473,2]
[338576848,1726743046260,-500.0,0.00016473,2]
[338576849,1726743046269,-500.0,0.00016473,2]
[338576850,1726743046278,-500.0,0.00016473,2]
[338576851,1726743046288,-500.0,0.00016473,2]
[338576852,1726743046297,-500.0,0.00016473,2]
[338576853,1726743046306,-500.0,0.00016473,2]
[338576854,1726743046317,-500.0,0.00016473,2]
[338576855,1726743046326,-160.90163875,0.00016473,2]
[338576856,1726743046335,-500.0,0.00016473,2]
[338576857,1726743046345,-500.0,0.00016473,2]
[338576858,1726743046354,-464.22077848,0.00016473,2]
[338576859,1726743046364,-500.0,0.00016473,2]
[338576860,1726743046373,-500.0,0.00016473,2]
[338576861,1726743046382,-500.0,0.00016473,2]
[338576862,1726743046392,-500.0,0.00016473,2]
[338576863,1726743046401,-500.0,0.00016473,2]
[338576864,1726743046411,-150.112233,0.000166,2]
[338576865,1726743046420,-150.112233,0.000166,2]
[338576866,1726743046430,-150.112233,0.000167,2]
[338576867,1726743046439,-500.0,0.00016712,2]
[338576868,1726743046448,-500.0,0.00016712,2]
[338576869,1726743046460,-500.0,0.00016712,2]
[338576870,1726743046469,-500.0,0.00016712,2]
[338576871,1726743046478,-564.40204833,0.00016712,2]
[338576872,1726743046487,-500.0,0.00016712,2]
[338576873,1726743046496,-500.0,0.00016712,2]
[338576874,1726743046505,-500.0,0.00016712,2]
[338576875,1726743046514,-1497.56,0.00016712,2]
[338576876,1726743046524,-500.0,0.00016712,2]
[338576877,1726743046534,-500.0,0.00016712,2]
[338576878,1726743046543,-500.0,0.00016712,2]
[338576879,1726743046552,-500.0,0.00016712,2]
[338576880,1726743046561,-500.0,0.00016712,2]
[338576881,1726743046572,-882.86,0.00016712,2]
[338576882,1726743046581,-458.95764943,0.00016712,2]
[338576883,1726743046591,-1058.44,0.00016712,2]
[338576884,1726743046601,-703.26,0.00016712,2]
[338576885,1726743046610,-592.77,0.00016712,2]
[338576886,1726743046620,-1619.33,0.00016712,2]
[338576887,1726743046629,-500.0,0.00016712,2]
[338576888,1726743046639,-514.78046155,0.00016712,2]
[338576889,1726743046648,-500.0,0.00016712,2]
[338576890,1726743046658,-1472.02,0.00016712,2]
[338576891,1726743046667,-500.0,0.00016712,2]
[338576892,1726743046677,-500.0,0.00016712,2]
[338576893,1726743046691,-500.0,0.00016712,2]
[338576894,1726743046702,-500.0,0.00016712,2]
[338576895,1726743046712,-501.62630862,0.00016712,2]
[338576896,1726743046722,-603.8,0.00016712,2]
[338576897,1726743046733,-500.0,0.00016712,2]
[338576898,1726743046744,-500.0,0.00016712,2]
[338576899,1726743046755,-867.9,0.00016712,2]
[338576900,1726743046765,-500.0,0.00016712,2]
[338576901,1726743046775,-500.0,0.00016712,2]
[338576902,1726743046785,-648.19244531,0.00016712,2]
[338576903,1726743046794,-500.0,0.00016712,2]
[338576904,1726743046804,-500.0,0.00016712,2]
[338576905,1726743046814,-500.0,0.00016712,2]
[338576906,1726743046823,-875.26,0.00016712,2]
[338576907,1726743046834,-500.0,0.00016712,2]
[338576908,1726743046843,-500.0,0.00016712,2]
[338576909,1726743046855,-500.0,0.00016712,2]
[338576910,1726743046865,-500.0,0.00016712,2]
[338576911,1726743046875,-500.0,0.00016712,2]
[338576912,1726743046886,-534.12,0.00016712,2]
[338576913,1726743046897,-500.0,0.00016712,2]
[338576914,1726743046909,-500.0,0.00016712,2]
[338576915,1726743046920,-500.0,0.00016712,2]
[338576916,1726743046931,-500.0,0.00016712,2]
[338576917,1726743046942,-500.0,0.00016712,2]
[338576918,1726743046952,-928.02,0.00016712,2]
[338576919,1726743046963,-500.0,0.00016712,2]
[338576920,1726743046975,-822.46,0.00016712,2]
[338576921,1726743046985,-257.51735784,0.00016712,2]
[338576922,1726743046997,-1664.29,0.00016712,2]
[338576923,1726743047009,-714.76,0.00016712,2]
[338576924,1726743047019,-500.0,0.00016712,2]
[338576925,1726743047030,-500.0,0.00016712,2]
[338576926,1726743047040,-427.33169991,0.00016712,2]
[338576927,1726743047052,-500.0,0.00016712,2]
[338576928,1726743047062,-716.92,0.00016712,2]
[338576929,1726743047074,-483.97274281,0.00016712,2]
[338576930,1726743047136,-852.26,0.00016712,2]
[338576931,1726743047146,-500.0,0.00016712,2]
[338576932,1726743047155,-500.0,0.00016712,2]
[338576933,1726743047164,-933.71,0.00016712,2]
[338576934,1726743047174,-500.0,0.00016712,2]
[338576935,1726743047183,-500.0,0.00016712,2]
[338576936,1726743047193,-500.0,0.00016712,2]
[338576937,1726743047202,-500.0,0.00016712,2]
[338576938,1726743047212,-500.0,0.00016712,2]
[338576939,1726743047221,-826.36,0.00016712,2]
[338576940,1726743047231,-500.0,0.00016712,2]
[338576941,1726743047240,-874.29,0.00016712,2]
[338576942,1726743047250,-500.0,0.00016712,2]
[338576943,1726743047260,-791.99,0.00016712,2]
[338576944,1726743047269,-772.91,0.00016712,2]
[338576945,1726743047278,-500.0,0.00016712,2]
[338576946,1726743047287,-903.4,0.00016712,2]
[338576947,1726743047297,-500.0,0.00016712,2]
[338576948,1726743047306,-500.0,0.00016712,2]
[338576949,1726743047316,-500.0,0.00016712,2]
[338576950,1726743047325,-500.0,0.00016712,2]
[338576951,1726743047335,-500.0,0.00016712,2]
[338576952,1726743047345,-815.1,0.00016712,2]
[338576953,1726743047354,-621.76,0.00016712,2]
[338576954,1726743047363,-500.0,0.00016712,2]
[338576955,1726743047373,-500.0,0.00016712,2]
[338576956,1726743047382,-500.0,0.00016712,2]
[338576957,1726743047391,-628.35,0.00016712,2]
[338576958,1726743047399,-500.0,0.00016712,2]
[338576959,1726743047408,-500.0,0.00016712,2]
[338576960,1726743047417,-578.5,0.00016712,2]
[338576961,1726743047426,-500.0,0.00016712,2]
[338576962,1726743047435,-500.0,0.00016712,2]
[338576963,1726743047444,-500.0,0.00016712,2]
[338576964,1726743047453,-864.59,0.00016712,2]
[338576965,1726743047462,-1095.82,0.00016712,2]